bitfinex/quotes_BTCUSD_20250515
["timestamp","ask_amount","ask_price","bid_price","bid_amount"]
[1747308065173,0.62465112,102250.0,102240.0,2.55921448]
[1747308065397,0.62465112,102250.0,102240.0,2.499013]
[1747308065605,0.62565112,102250.0,102240.0,2.499013]
[1747308065989,0.62465112,102250.0,102240.0,2.499013]
[1747308066213,0.62665112,102250.0,102240.0,2.499013]
[1747308066438,0.62665112,102250.0,102240.0,2.498013]
[1747308066672,0.34606783,102250.0,102240.0,2.498013]
[1747308066876,0.62665112,102250.0,102240.0,2.498013]
[1747308070785,0.34606783,102250.0,102240.0,2.498013]
[1747308070968,0.62665112,102250.0,102240.0,2.498013]
[1747308071451,0.44551843,102250.0,102240.0,2.5077939]
[1747308071662,0.44551843,102250.0,102240.0,2.51255385]
[1747308071899,0.24273838,102250.0,102240.0,2.71795271]
[1747308072116,0.002,102250.0,102240.0,3.35809675]
[1747308072329,0.002,102250.0,102240.0,3.48620615]
[1747308073160,0.002,102250.0,102240.0,3.50118624]
[1747308073338,0.002,102250.0,102240.0,3.91048624]
[1747308073539,0.002,102250.0,102240.0,4.38782953]
[1747308073744,0.002,102250.0,102240.0,4.10724624]
[1747308074315,0.002,102250.0,102240.0,4.38782953]
[1747308074527,0.22495267,102270.0,102260.0,0.56491581]
[1747308074732,0.24450807,102270.0,102260.0,0.85527742]
[1747308075177,0.24450807,102270.0,102260.0,0.8454991]
[1747308075379,0.24450893,102270.0,102260.0,0.84549919]
[1747308075581,0.24450893,102270.0,102260.0,0.83572068]
[1747308075776,0.24450893,102270.0,102260.0,0.84549919]
[1747308075979,0.24650893,102270.0,102260.0,0.5649159]
[1747308076183,0.23673081,102270.0,102260.0,0.57469422]
[1747308076421,0.24650875,102270.0,102260.0,0.57469432]
[1747308076626,0.23673081,102270.0,102260.0,0.86505593]
[1747308076952,0.23673081,102270.0,102260.0,0.84549919]
[1747308076953,0.24650884,102270.0,102260.0,0.84549919]
[1747308077789,0.24650884,102270.0,102260.0,0.85527761]
[1747308077960,0.24650884,102270.0,102260.0,0.84549919]
[1747308078861,0.24650884,102270.0,102260.0,0.55513739]
[1747308079065,0.24650884,102270.0,102260.0,0.83572068]
[1747308079267,0.24650884,102270.0,102260.0,0.85702679]
[1747308079567,0.24650884,102270.0,102260.0,0.58622201]
[1747308079790,0.24650884,102270.0,102260.0,0.5764435]
[1747308080828,0.22695411,102270.0,102260.0,0.36130611]
[1747308081058,0.24807655,102270.0,102260.0,0.34]
[1747308081275,0.21515824,102250.0,102240.0,3.11271205]
[1747308081478,0.21515824,102250.0,102240.0,3.12249248]
[1747308081683,0.21515824,102250.0,102240.0,3.45271196]
[1747308081889,0.21515824,102250.0,102240.0,3.46249248]
[1747308082188,0.21515824,102250.0,102240.0,3.47703333]
[1747308082342,0.21515824,102250.0,102240.0,3.75761662]
[1747308082554,0.21515824,102250.0,102240.0,3.75861662]
[1747308082775,0.21515824,102250.0,102240.0,3.37052395]
[1747308082977,0.21515824,102250.0,102240.0,3.38030418]
[1747308083230,0.22493809,102250.0,102240.0,3.38030428]
[1747308083724,0.23471804,102250.0,102240.0,3.38230437]
[1747308083930,0.21515882,102250.0,102240.0,2.87676118]
[1747308084134,0.23025882,102250.0,102240.0,2.87676118]
[1747308084370,0.24665882,102250.0,102240.0,2.87676118]
[1747308084569,0.24665882,102250.0,102240.0,2.86222033]
[1747308085133,0.24665882,102250.0,102240.0,2.87676118]
[1747308086164,0.24665882,102250.0,102240.0,3.08216023]
[1747308086165,0.23025882,102250.0,102240.0,3.08216023]
[1747308086410,0.00977956,102250.0,102240.0,3.36274352]
[1747308086632,0.23471746,102250.0,102240.0,3.38230485]
[1747308086861,0.01955884,102250.0,102240.0,3.40738508]
[1747308087093,0.224916,102260.0,102250.0,0.22969909]
[1747308087326,0.21513701,102260.0,102250.0,0.22969909]
[1747308087552,0.22491581,102260.0,102250.0,0.22969947]
[1747308088009,0.22491581,102260.0,102250.0,0.23947894]
[1747308088232,0.22491581,102260.0,102250.0,0.24925841]
[1747308088476,0.22491581,102260.0,102250.0,0.25025841]
[1747308088730,0.22491581,102260.0,102250.0,0.60003769]
[1747308089154,0.22591581,102260.0,102250.0,0.88062107]
[1747308089357,0.2356947,102260.0,102250.0,0.8806205]
[1747308090133,0.2356947,102260.0,102250.0,0.89561405]
[1747308090350,0.02055655,102260.0,102250.0,0.92671405]
[1747308090671,0.03033525,102260.0,102250.0,0.92671405]
[1747308090928,0.23569394,102260.0,102250.0,0.92671405]
[1747308091142,0.24547283,102260.0,102250.0,0.91693477]
[1747308091725,0.04011405,102260.0,102250.0,0.92671405]
[1747308091929,0.001,102260.0,102250.0,0.92671405]
[1747308092703,0.001,102260.0,102250.0,1.52098845]
[1747308104724,0.001,102260.0,102250.0,1.24040516]
[1747308104942,0.001,102260.0,102250.0,1.52098845]
[1747308106756,0.001,102260.0,102250.0,1.52080524]
[1747308110776,0.001,102260.0,102250.0,1.24040516]
[1747308110982,0.001,102260.0,102250.0,1.52080524]
[1747308112817,0.001,102260.0,102250.0,1.93010524]
[1747308116563,0.01077822,102260.0,102250.0,1.93010524]
[1747308116686,0.01077813,102260.0,102250.0,1.93010524]
[1747308117186,0.001,102260.0,102250.0,1.93010524]
[1747308118947,6e-05,102270.0,102260.0,0.27015656]
[1747308119297,6e-05,102270.0,102260.0,0.64786604]
[1747308120708,0.00106,102270.0,102260.0,0.64786604]
[1747308120913,0.00106,102270.0,102260.0,0.84534604]
[1747308121527,0.00097111,102270.0,102260.0,0.64886604]
[1747308121765,0.00097111,102270.0,102260.0,1.25464604]
[1747308121970,0.00097111,102270.0,102260.0,1.25457237]
[1747308122274,0.00097111,102270.0,102260.0,1.31424596]
[1747308122502,0.00097111,102270.0,102260.0,1.59457237]
[1747308122707,0.00097111,102270.0,102260.0,1.39809237]
[1747308123293,0.00097111,102270.0,102260.0,1.45731953]
[1747308123756,0.00097111,102270.0,102260.0,1.14629312]
[1747308123945,0.03592584,102270.0,102260.0,1.14629312]
[1747308124152,0.01637111,102270.0,102260.0,1.42661953]
[1747308124347,0.01074828,102270.0,102260.0,1.42661953]
[1747308124716,0.01074828,102270.0,102260.0,1.01731953]
[1747308124916,0.00097111,102270.0,102260.0,1.02342903]
[1747308125306,0.01074828,102270.0,102260.0,1.02342903]
[1747308125511,0.00097111,102270.0,102260.0,1.02342903]
[1747308125953,0.00097111,102270.0,102260.0,1.05502903]
[1747308126135,0.00097111,102270.0,102260.0,0.99580187]
[1747308127637,0.00097111,102270.0,102260.0,0.68387546]
[1747308127843,0.00097111,102270.0,102260.0,1.37350187]
[1747308128671,0.00097111,102270.0,102260.0,1.38850187]
[1747308128835,0.00097111,102270.0,102260.0,1.40500187]
[1747308129245,0.00097111,102270.0,102260.0,1.37350187]
[1747308129456,0.04184847,102270.0,102260.0,1.09317546]
[1747308129878,0.05162593,102270.0,102260.0,1.09317546]
[1747308130101,0.06140349,102270.0,102260.0,1.37350187]
[1747308130645,0.04184847,102270.0,102260.0,1.37350187]
[1747308130839,0.01074847,102270.0,102260.0,0.96420187]
[1747308131436,0.02052612,102270.0,102260.0,0.68387546]
[1747308131640,0.02604847,102270.0,102260.0,0.96420187]
[1747308131797,0.01074847,102270.0,102260.0,0.96420187]
[1747308132198,0.02604847,102270.0,102260.0,0.96420187]
[1747308132491,0.03582612,102270.0,102260.0,0.96420187]
[1747308132701,0.06130387,102270.0,102260.0,0.69365397]
[1747308132904,0.05152612,102270.0,102260.0,0.69365397]
[1747308133108,0.05152612,102270.0,102260.0,0.97398038]
[1747308135460,0.04174847,102270.0,102260.0,0.97398038]
[1747308135666,0.01074838,102270.0,102260.0,0.97398038]
[1747308135994,0.00097111,102270.0,102260.0,1.00438038]
[1747308136517,0.00097111,102270.0,102260.0,1.00440096]
[1747308136718,0.00097111,102270.0,102260.0,1.39850096]
[1747308137743,0.00097111,102270.0,102260.0,1.41350096]
[1747308138417,0.00097111,102270.0,102260.0,1.47272812]
[1747308141115,0.00097111,102270.0,102260.0,1.46661862]
[1747308142120,0.00097111,102270.0,102260.0,1.66297862]
[1747308142546,0.00097111,102270.0,102260.0,1.64797862]
[1747308143939,0.00097111,102270.0,102260.0,1.66397862]
[1747308146073,0.00097111,102270.0,102260.0,1.45161862]
[1747308146260,0.22280915,102270.0,102260.0,1.14629331]
[1747308146507,0.25846483,102270.0,102260.0,1.03920549]
[1747308146710,0.24868747,102270.0,102260.0,0.80952716]
[1747308147031,0.24868747,102270.0,102260.0,1.03444345]
[1747308147232,0.06290387,102270.0,102260.0,1.06854104]
[1747308147406,0.07268181,102270.0,102260.0,1.34888803]
[1747308147853,0.27802061,102270.0,102260.0,1.34888803]
[1747308148235,0.26824325,102270.0,102260.0,1.33910971]
[1747308148472,0.26824325,102270.0,102260.0,1.0489843]
[1747308148812,0.26824325,102270.0,102260.0,0.6396843]
[1747308149239,0.26824325,102270.0,102260.0,0.59023565]
[1747308150558,0.25846569,102270.0,102260.0,0.58045714]
[1747308150754,0.25846569,102270.0,102260.0,0.57067853]
[1747308150958,0.25846569,102270.0,102260.0,0.58045723]
[1747308151174,0.25846569,102270.0,102260.0,0.59023584]
[1747308151374,0.25846569,102270.0,102260.0,0.56089973]
[1747308151676,0.24868785,102270.0,102260.0,0.58045704]
[1747308151937,0.23890991,102270.0,102260.0,0.35554085]
[1747308152155,0.23890991,102270.0,102260.0,0.001]
[1747308152358,0.53261931,102270.0,102260.0,0.001]
[1747308152559,0.72893931,102270.0,102260.0,0.001]
[1747308154070,0.7279682,102270.0,102260.0,0.001]
[1747308154247,0.5316482,102270.0,102260.0,0.001]
[1747308154390,0.3372482,102270.0,102260.0,0.001]
[1747308154846,0.23635878,102260.0,102250.0,0.91073301]
[1747308155064,0.23635878,102260.0,102250.0,1.05688482]
[1747308155258,0.23635878,102260.0,102250.0,0.85150585]
[1747308155453,0.23635878,102260.0,102250.0,1.04710487]
[1747308155860,0.23635878,102260.0,102250.0,0.85150585]
[1747308156018,0.23635878,102260.0,102250.0,1.04810487]
[1747308157228,0.23635878,102260.0,102250.0,1.05788482]
[1747308157831,0.23635878,102260.0,102250.0,1.04810487]
[1747308158246,0.23635878,102260.0,102250.0,0.85250585]
[1747308159118,0.23635878,102260.0,102250.0,1.06766467]
[1747308159489,0.23635878,102260.0,102250.0,1.05788482]
[1747308159908,0.23635878,102260.0,102250.0,0.85250585]
[1747308160129,0.23635878,102260.0,102250.0,1.05788482]
[1747308160332,0.23635878,102260.0,102250.0,1.06766467]
[1747308161727,0.23635878,102260.0,102250.0,1.07744442]
[1747308164861,0.23635878,102260.0,102250.0,1.05788482]
[1747308165561,0.23635878,102260.0,102250.0,1.07744442]
[1747308165725,0.23635878,102260.0,102250.0,1.06766467]
[1747308166593,0.23635878,102260.0,102250.0,1.04810487]
[1747308166790,0.23635878,102260.0,102250.0,0.85250585]
[1747308166994,0.23635878,102260.0,102250.0,1.04810487]
[1747308167196,0.23635878,102260.0,102250.0,0.85250585]
[1747308167498,0.23635878,102260.0,102250.0,0.87088016]
[1747308167729,0.23635878,102260.0,102250.0,1.06647918]
[1747308168659,0.23635878,102260.0,102250.0,1.07625913]
[1747308169269,0.23635878,102260.0,102250.0,1.08603888]
[1747308169469,0.23635878,102260.0,102250.0,0.87088016]
[1747308171376,0.23635878,102260.0,102250.0,1.06647918]
[1747308171803,0.2218388,102270.0,102260.0,0.21989963]
[1747308172218,0.21206077,102270.0,102260.0,0.01454085]
[1747308172396,0.21206077,102270.0,102260.0,0.02065003]
[1747308172601,0.21206077,102270.0,102260.0,0.22600872]
[1747308172821,0.23467119,102270.0,102260.0,0.55731274]
[1747308173053,0.24644922,102270.0,102260.0,0.55731274]
[1747308173248,0.03133315,102270.0,102260.0,0.56709106]
[1747308173448,0.01177736,102270.0,102260.0,0.90709106]
[1747308173646,0.03133276,102270.0,102260.0,0.90709106]
[1747308174193,0.03133276,102270.0,102260.0,0.62674407]
[1747308174365,0.0411107,102270.0,102260.0,0.90709106]
[1747308174532,0.03133276,102270.0,102260.0,0.90709106]
[1747308174737,0.02155492,102270.0,102260.0,0.90709106]
[1747308175141,0.01177736,102270.0,102260.0,0.90709106]
[1747308175349,0.02155501,102270.0,102260.0,0.90709106]
[1747308175547,0.02155492,102270.0,102260.0,0.90709106]
[1747308176161,0.01177727,102270.0,102260.0,0.90709106]
[1747308176385,0.002,102270.0,102260.0,0.90709106]
[1747308176649,0.002,102270.0,102260.0,0.62674407]
[1747308176844,0.02155473,102270.0,102260.0,0.62674407]
[1747308177430,0.03133238,102270.0,102260.0,0.62674407]
[1747308177628,0.03133229,102270.0,102260.0,0.62674407]
[1747308178015,0.02155473,102270.0,102260.0,0.62674407]
[1747308178482,0.01177727,102270.0,102260.0,0.62674407]
[1747308178768,0.02155473,102270.0,102260.0,0.62674407]
[1747308178974,0.002,102270.0,102260.0,0.62674407]
[1747308179332,0.01177727,102270.0,102260.0,0.62674407]
[1747308179530,0.002,102270.0,102260.0,0.62674407]
[1747308179739,0.01177727,102270.0,102260.0,0.62674407]
[1747308179963,0.02155473,102270.0,102260.0,0.62674407]
[1747308180342,0.02155473,102270.0,102260.0,0.90709106]
[1747308180521,0.02155473,102270.0,102260.0,1.12366007]
[1747308181175,0.01177727,102270.0,102260.0,1.12366007]
[1747308181512,0.002,102270.0,102260.0,1.12366007]
[1747308181675,0.01177736,102270.0,102260.0,1.12366007]
[1747308182062,0.002,102270.0,102260.0,1.40400706]
[1747308182261,0.01177727,102270.0,102260.0,1.40400706]
[1747308182448,0.01177717,102270.0,102260.0,1.40400706]
[1747308182961,0.002,102270.0,102260.0,1.40400706]
[1747308183163,0.01177717,102270.0,102260.0,1.40400706]
[1747308183405,0.01177717,102270.0,102260.0,1.30766858]
[1747308183561,0.002,102270.0,102260.0,1.40497798]
[1747308184136,0.4178828,102280.0,102270.0,0.21511617]
[1747308184345,0.4178828,102280.0,102270.0,0.22489363]
[1747308184538,0.4178828,102280.0,102270.0,0.23100281]
[1747308184871,0.4337828,102280.0,102270.0,0.23100281]
[1747308185269,0.43427001,102280.0,102270.0,0.23100281]
[1747308185689,0.42137001,102280.0,102270.0,0.23100281]
[1747308186096,0.42136923,102280.0,102270.0,0.58078017]
[1747308186742,0.21604993,102280.0,102270.0,0.58078017]
[1747308186911,0.22582672,102280.0,102270.0,0.58078017]
[1747308187119,0.00348721,102280.0,102270.0,0.81132953]
[1747308187320,0.00348721,102280.0,102270.0,0.90863893]
[1747308187911,0.00348721,102280.0,102270.0,0.72463042]
[1747308188085,0.00348721,102280.0,102270.0,0.90863893]
[1747308188463,0.00048721,102280.0,102270.0,0.90863893]
[1747308188873,0.00048721,102280.0,102270.0,0.90963893]
[1747308189451,0.00048721,102280.0,102270.0,1.09464744]
[1747308190082,0.00048721,102280.0,102270.0,0.91063893]
[1747308190750,0.00048721,102280.0,102270.0,1.31993893]
[1747308192132,0.00048721,102280.0,102270.0,1.13593042]
[1747308192373,0.00048721,102280.0,102270.0,1.31993893]
[1747308193328,0.00048721,102280.0,102270.0,1.41621007]
[1747308193547,0.00048721,102280.0,102270.0,1.69648972]
[1747308193799,0.00048721,102280.0,102270.0,1.89264972]
[1747308193998,0.00048721,102280.0,102270.0,1.99820204]
[1747308194203,0.02005102,102300.0,102290.0,0.6111906]
[1747308194406,0.02005102,102300.0,102290.0,1.40418883]
[1747308195396,0.02005102,102300.0,102290.0,1.40818883]
[1747308195639,0.02005102,102300.0,102290.0,1.40418883]
[1747308195995,0.02005102,102300.0,102290.0,1.40818883]
[1747308196423,0.03960011,102300.0,102290.0,1.11670918]
[1747308196621,0.03960011,102300.0,102290.0,1.10010918]
[1747308196929,0.02982542,102300.0,102290.0,1.10010918]
[1747308197163,0.02005102,102300.0,102290.0,1.10010918]
[1747308197370,0.02005102,102300.0,102290.0,1.41218883]
[1747308197794,0.02005102,102300.0,102290.0,1.90895883]
[1747308198024,0.02005102,102300.0,102290.0,2.10511883]
[1747308198191,0.02005102,102300.0,102290.0,2.10511735]
[1747308199659,0.02005102,102300.0,102290.0,2.10511738]
[1747308200017,0.02005102,102300.0,102290.0,1.40943]
[1747308200236,0.02005102,102300.0,102290.0,1.41553774]
[1747308204130,0.0549003,102300.0,102290.0,0.83780229]
[1747308204405,0.27577869,102300.0,102290.0,0.72595232]
[1747308204612,0.27577869,102300.0,102290.0,0.52065386]
[1747308204821,0.25622941,102300.0,102290.0,0.51087774]
[1747308205038,0.24645444,102300.0,102290.0,1.04640027]
[1747308205251,0.24645444,102300.0,102290.0,1.0561763]
[1747308205712,0.24645444,102300.0,102290.0,1.07071715]
[1747308205870,0.24645444,102300.0,102290.0,1.0561763]
[1747308206091,0.24645444,102300.0,102290.0,1.06671715]
[1747308206299,0.24645444,102300.0,102290.0,1.07071715]
[1747308206533,0.24645444,102300.0,102290.0,1.06671715]
[1747308206927,0.24645444,102300.0,102290.0,1.06271715]
[1747308207129,0.24645444,102300.0,102290.0,1.07249308]
[1747308207325,0.25622941,102300.0,102290.0,1.08226882]
[1747308207738,0.05095102,102300.0,102290.0,1.09504437]
[1747308207907,0.06467546,102300.0,102290.0,1.10181982]
[1747308208107,0.07445053,102300.0,102290.0,1.10281982]
[1747308208457,0.05915053,102300.0,102290.0,1.10281982]
[1747308208666,0.05914986,102300.0,102290.0,1.10281982]
[1747308208835,0.06892493,102300.0,102290.0,1.10281982]
[1747308209020,0.08522493,102300.0,102290.0,1.10281982]
[1747308209846,0.07544986,102300.0,102290.0,1.10281982]
[1747308210343,0.08522493,102300.0,102290.0,1.10281982]
[1747308211373,0.07544986,102300.0,102290.0,1.10281982]
[1747308212202,0.27095328,102300.0,102290.0,1.09304437]
[1747308212402,0.28072845,102300.0,102290.0,1.09304437]
[1747308212627,0.09064986,102300.0,102290.0,1.10281982]
[1747308212850,0.09064986,102300.0,102290.0,1.09671208]
[1747308213113,0.09064986,102300.0,102290.0,1.10282049]
[1747308213662,0.10042493,102300.0,102290.0,1.10282049]
[1747308213864,0.09064976,102300.0,102290.0,1.10282049]
[1747308214064,0.07544976,102300.0,102290.0,1.10282049]
[1747308214735,0.07544967,102300.0,102290.0,1.10282049]
[1747308215601,0.08522464,102300.0,102290.0,1.10282049]
[1747308216007,0.08522531,102300.0,102290.0,1.10282049]
[1747308216823,0.07545024,102300.0,102290.0,1.10282049]
[1747308217035,0.27095366,102300.0,102290.0,1.09304504]
[1747308217245,0.29682883,102300.0,102290.0,1.09304513]
[1747308217442,0.09155024,102300.0,102290.0,1.09304513]
[1747308217655,0.08177527,102300.0,102290.0,1.10282058]
[1747308217862,0.10132531,102300.0,102290.0,1.10282058]
[1747308218070,0.08177527,102300.0,102290.0,1.10282058]
[1747308218274,0.09155024,102300.0,102290.0,1.10282058]
[1747308218755,0.28705366,102300.0,102290.0,1.10282058]
[1747308218957,0.09155024,102300.0,102290.0,1.10282058]
[1747308219826,0.08177527,102300.0,102290.0,1.10282058]
[1747308220033,0.03959992,102300.0,102290.0,1.10282058]
[1747308220244,0.02005102,102300.0,102290.0,1.10282058]
[1747308220393,0.02005102,102300.0,102290.0,1.41400023]
[1747308221045,0.02005102,102300.0,102290.0,1.13372058]
[1747308221858,0.02982542,102300.0,102290.0,1.11792058]
[1747308222968,0.02005102,102300.0,102290.0,1.11792058]
[1747308223175,0.02982533,102300.0,102290.0,1.10282058]
[1747308223608,0.03959973,102300.0,102290.0,1.10282058]
[1747308223960,0.03959973,102300.0,102290.0,1.11802058]
[1747308226765,0.04937432,102300.0,102290.0,1.10282058]
[1747308227595,0.05914901,102300.0,102290.0,1.10282058]
[1747308227905,0.04937432,102300.0,102290.0,1.10282058]
[1747308228889,0.07524901,102300.0,102290.0,1.10282058]
[1747308229627,0.27075243,102300.0,102290.0,1.09304513]
[1747308229796,0.28705357,102300.0,102290.0,1.09304513]
[1747308229996,0.28705357,102300.0,102290.0,1.10282058]
[1747308230407,0.28705357,102300.0,102290.0,1.12625235]
[1747308230566,0.28705357,102300.0,102290.0,1.10282058]
[1747308230961,0.09154958,102300.0,102290.0,1.10282058]
[1747308231796,0.10070087,102300.0,102290.0,1.10282058]
[1747308232201,0.0746259,102300.0,102290.0,1.10282058]
[1747308232484,0.08440078,102300.0,102290.0,1.10282058]
[1747308232689,0.06830078,102300.0,102290.0,1.10282058]
[1747308234111,0.0585259,102300.0,102290.0,1.10282058]
[1747308234444,0.06830078,102300.0,102290.0,1.10282058]
[1747308235970,0.09397575,102300.0,102290.0,1.10282058]
[1747308236379,0.0744259,102300.0,102290.0,1.10282058]
[1747308236603,0.08420078,102300.0,102290.0,1.10282058]
[1747308237595,0.08662434,102300.0,102290.0,1.10282058]
[1747308237799,0.07684946,102300.0,102290.0,1.10282058]
[1747308238298,0.08662434,102300.0,102290.0,1.10282058]
[1747308239113,0.07684946,102300.0,102290.0,1.10282058]
[1747308239265,0.27235288,102300.0,102290.0,1.08326958]
[1747308239474,0.27595558,102300.0,102290.0,1.05394179]
[1747308239678,0.27595558,102300.0,102290.0,1.06371791]
[1747308239878,0.27595558,102300.0,102290.0,1.07349394]
[1747308240109,0.27595558,102300.0,102290.0,1.08326987]
[1747308240333,0.27595558,102300.0,102290.0,1.0930457]
[1747308241167,0.08045216,102300.0,102290.0,1.10282077]
[1747308241380,0.28573075,102300.0,102290.0,1.10282077]
[1747308241554,0.28573075,102300.0,102290.0,1.09304532]
[1747308242349,0.28573075,102300.0,102290.0,1.10282096]
[1747308242992,0.28573075,102300.0,102290.0,1.10282118]
[1747308243777,0.26015558,102300.0,102290.0,1.1028206]
[1747308244059,0.26993075,102300.0,102290.0,1.1028206]
[1747308244725,0.26993075,102300.0,102290.0,1.09304515]
[1747308246169,0.28503075,102300.0,102290.0,1.09304515]
[1747308246785,0.26993075,102300.0,102290.0,1.09304515]
[1747308247405,0.26015597,102300.0,102290.0,1.08326951]
[1747308247607,0.27605597,102300.0,102290.0,1.08326951]
[1747308247830,0.27605597,102300.0,102290.0,1.09304515]
[1747308248881,0.27605597,102300.0,102290.0,1.07349377]
[1747308251266,0.26015597,102300.0,102290.0,1.08326941]
[1747308252199,0.24425597,102300.0,102290.0,1.09304496]
[1747308252846,0.04875216,102300.0,102290.0,1.09304496]
[1747308253150,0.02920231,102300.0,102290.0,1.41429337]
[1747308253281,0.02005102,102300.0,102290.0,1.41429337]
[1747308253483,0.02005102,102300.0,102290.0,1.51160277]
[1747308254194,0.02005102,102300.0,102290.0,1.51160213]
[1747308254390,0.02005102,102300.0,102290.0,1.50549414]
[1747308254645,0.02005102,102300.0,102290.0,1.51160212]
[1747308255628,0.02005102,102300.0,102290.0,1.70728212]
[1747308255808,0.02005102,102300.0,102290.0,1.72274749]
[1747308259839,0.02005102,102300.0,102290.0,2.13204749]
[1747308261829,0.02005102,102300.0,102290.0,2.19127465]
[1747308263001,0.02005102,102300.0,102290.0,1.99559465]
[1747308264162,0.02005102,102300.0,102290.0,1.71532169]
[1747308264557,0.02005102,102300.0,102290.0,1.99559465]
[1747308264909,0.04937442,102300.0,102290.0,1.68412169]
[1747308265026,0.04937442,102300.0,102290.0,1.00241136]
[1747308265027,0.27075281,102300.0,102290.0,1.00241136]
[1747308265223,0.2667041,102300.0,102290.0,1.19316907]
[1747308265470,0.2667041,102300.0,102290.0,1.202945]
[1747308265737,0.2667041,102300.0,102290.0,0.81796168]
[1747308265967,0.2667041,102300.0,102290.0,1.14342083]
[1747308266171,0.2667041,102300.0,102290.0,1.15796168]
[1747308266665,0.2667041,102300.0,102290.0,1.133645]
[1747308267317,0.2667041,102300.0,102290.0,0.93311136]
[1747308267528,0.25692941,102300.0,102290.0,0.59311136]
[1747308267912,0.25692941,102300.0,102290.0,0.5338842]
[1747308268281,0.25692941,102300.0,102290.0,0.8738842]
[1747308269537,0.25692941,102300.0,102290.0,0.5338842]
[1747308274625,0.25692941,102300.0,102290.0,0.51841883]
[1747308279455,0.2659302,102300.0,102290.0,0.51841883]
[1747308281662,0.25692941,102300.0,102290.0,0.51841883]
[1747308286450,0.45208941,102300.0,102290.0,0.51841883]
[1747308287091,0.54939881,102300.0,102290.0,0.50387798]
[1747308287262,0.54939881,102300.0,102290.0,0.49777]
[1747308287686,0.55832816,102300.0,102290.0,0.49777]
[1747308288595,0.75364816,102300.0,102290.0,0.49777]
[1747308290594,0.75364816,102300.0,102290.0,0.50387918]
[1747308291616,0.02898037,102300.0,102290.0,1.16874606]
[1747308291815,0.02898037,102300.0,102290.0,1.39359581]
[1747308292085,0.02898037,102300.0,102290.0,1.49090521]
[1747308292490,0.02005102,102300.0,102290.0,1.49090521]
[1747308293970,0.02005102,102300.0,102290.0,1.53643727]
[1747308296677,0.02005102,102300.0,102290.0,1.15880184]
[1747308296923,0.02005102,102300.0,102290.0,1.05895348]
[1747308296924,0.04937508,102300.0,102290.0,1.05895348]
[1747308297114,0.04937508,102300.0,102290.0,1.06872893]
[1747308297253,0.04937499,102300.0,102290.0,1.08326978]
[1747308298801,0.03960011,102300.0,102290.0,1.11476978]
[1747308299026,0.03960011,102300.0,102290.0,1.39509581]
[1747308299230,0.04937499,102300.0,102290.0,1.39509581]
[1747308299434,0.02982542,102300.0,102290.0,1.39509581]
[1747308299634,0.03959992,102300.0,102290.0,1.39509581]
[1747308299834,0.04937461,102300.0,102290.0,1.39509501]
[1747308300547,0.05914949,102300.0,102290.0,1.39509501]
[1747308300868,0.06892446,102300.0,102290.0,1.39509501]
[1747308301074,0.04937461,102300.0,102290.0,1.39509501]
[1747308301272,0.05914939,102300.0,102290.0,1.39509501]
[1747308302353,0.06892436,102300.0,102290.0,1.39509501]
[1747308302558,0.05914939,102300.0,102290.0,1.39509501]
[1747308302773,0.02005102,102300.0,102290.0,1.39509501]
[1747308304146,0.02005102,102300.0,102290.0,1.49240441]
[1747308309780,0.02005102,102300.0,102290.0,1.21207838]
[1747308309979,0.02005102,102300.0,102290.0,1.49240441]
[1747308310199,0.02982533,102300.0,102290.0,1.49240441]
[1747308310599,0.02982533,102300.0,102290.0,1.21207838]
[1747308310834,0.03959973,102300.0,102290.0,1.49240441]
[1747308311391,0.02982533,102300.0,102290.0,1.49240441]
[1747308311605,0.03959973,102300.0,102290.0,1.49240441]
[1747308312058,0.03959973,102300.0,102290.0,1.21207838]
[1747308312184,0.03959973,102300.0,102290.0,1.49240441]
[1747308312383,0.03959973,102300.0,102290.0,1.21207838]
[1747308312585,0.04937432,102300.0,102290.0,1.49240441]
[1747308312785,0.03959973,102300.0,102290.0,1.49240441]
[1747308313006,0.04937432,102300.0,102290.0,1.49240441]
[1747308314256,0.06892398,102300.0,102290.0,1.49240441]
[1747308314578,0.05914901,102300.0,102290.0,1.49240441]
[1747308315335,0.05914901,102300.0,102290.0,1.21207838]
[1747308315677,0.06892379,102300.0,102290.0,1.19647838]
[1747308315885,0.06892389,102300.0,102290.0,1.47680441]
[1747308316095,0.05914901,102300.0,102290.0,1.49220441]
[1747308318013,0.26442721,102300.0,102290.0,1.07961779]
[1747308318189,0.25465396,102300.0,102290.0,1.08326946]
[1747308318421,0.26610449,102300.0,102290.0,0.84387838]
[1747308319286,0.26610449,102300.0,102290.0,0.85841923]
[1747308319491,0.26610449,102300.0,102290.0,1.05394176]
[1747308319689,0.25090449,102300.0,102290.0,1.05394176]
[1747308320016,0.25090449,102300.0,102290.0,0.86819535]
[1747308320159,0.25692961,102300.0,102290.0,0.85841923]
[1747308321199,0.25692961,102300.0,102290.0,0.90397012]
[1747308321832,0.24715444,102300.0,102290.0,0.89786174]
[1747308322738,0.53922384,102300.0,102290.0,0.54332089]
[1747308323300,0.53922384,102300.0,102290.0,0.55786174]
[1747308325441,0.53922384,102300.0,102290.0,0.51231085]
[1747308325569,0.53922384,102300.0,102290.0,0.51842015]
[1747308326385,0.44191444,102300.0,102290.0,0.51842015]
[1747308326630,0.23135444,102300.0,102290.0,0.51842015]
[1747308326831,0.24675444,102300.0,102290.0,0.51842015]
[1747308327987,0.34406384,102300.0,102290.0,0.51842015]
[1747308328534,0.34406384,102300.0,102290.0,0.51231085]
[1747308329135,0.34406384,102300.0,102290.0,0.51842016]
[1747308331257,0.34406384,102300.0,102290.0,0.50387931]
[1747308331773,0.34406384,102300.0,102290.0,0.49777]
[1747308333407,0.43696674,102300.0,102290.0,0.49777]
[1747308335660,0.34406384,102300.0,102290.0,0.49777]
[1747308337050,0.77634384,102300.0,102290.0,0.49777]
[1747308337701,1.16578384,102300.0,102290.0,0.49777]
[1747308338450,1.17078384,102300.0,102290.0,0.49777]
[1747308339106,1.20013084,102300.0,102290.0,0.49677]
[1747308339277,1.29744024,102300.0,102290.0,0.49677]
[1747308342738,1.26809324,102300.0,102290.0,0.49677]
[1747308342967,1.27809324,102300.0,102290.0,0.49677]
[1747308343195,0.88865324,102300.0,102290.0,0.49677]
[1747308343393,1.27805324,102300.0,102290.0,0.49677]
[1747308350677,1.29236439,102300.0,102290.0,0.49677]
[1747308351453,1.28236439,102300.0,102290.0,0.49677]
[1747308354514,1.08776439,102300.0,102290.0,0.49677]
[1747308354738,1.14498384,102300.0,102290.0,0.49677]
[1747308354937,0.75594384,102300.0,102290.0,0.49677]
[1747308355193,1.14498384,102300.0,102290.0,0.49677]
[1747308357334,1.14494384,102300.0,102290.0,0.49677]
[1747308357547,0.21509514,102280.0,102270.0,0.03103615]
[1747308357746,0.21509514,102280.0,102270.0,0.03223615]
[1747308359118,0.21609514,102280.0,102270.0,0.03223615]
[1747308361063,0.21609456,102280.0,102270.0,0.24735251]
[1747308361279,0.23564824,102280.0,102270.0,0.5374561]
[1747308361486,0.001,102280.0,102270.0,0.90177431]
[1747308361688,0.001,102280.0,102270.0,1.27940974]